fUST/lending_fUST_20251120
["ID","MTS","AMOUNT","RATE_DAILY","PERIOD"]
[394443105,1763578006578,-500.0,0.00049315,120]
[394443106,1763578006605,-500.0,0.00049315,120]
[394443107,1763578006632,-500.0,0.00049315,120]
[394443108,1763578006660,-500.0,0.00049315,120]
[394443109,1763578006686,-500.0,0.00049315,120]
[394443110,1763578006712,-641.65779886,0.00049315,120]
[394443111,1763578006738,-500.0,0.00049315,120]
[394443112,1763578006768,-933.73,0.00049315,120]
[394443113,1763578006794,-500.0,0.00049315,120]
[394443114,1763578006819,-500.0,0.00049315,120]
[394443115,1763578006845,-500.0,0.00049315,120]
[394443116,1763578006870,-589.23,0.00049315,120]
[394443117,1763578006894,-173.77135117,0.00049315,120]
[394443118,1763578006918,-500.0,0.00049315,120]
[394443119,1763578006946,-500.0,0.00049315,120]
[394443120,1763578006971,-489.76316881,0.00049315,120]
[394443121,1763578006995,-500.0,0.00049315,120]
[394443122,1763578007020,-500.0,0.00049315,120]
[394443123,1763578007045,-737.15,0.00049315,120]
[394443124,1763578007071,-649.74503396,0.00049315,120]
[394443125,1763578007096,-500.0,0.00049315,120]
[394443126,1763578007121,-500.0,0.00049315,120]
[394443127,1763578007146,-569.79950054,0.00049315,120]
[394443128,1763578007171,-500.0,0.00049315,120]
[394443129,1763578007197,-493.53155774,0.00049315,120]
[394443130,1763578007227,-500.0,0.00049315,120]
[394443131,1763578007253,-537.3170269,0.00049315,120]
[394443132,1763578007363,-500.0,0.00049315,120]
[394443133,1763578007391,-500.0,0.00049315,120]
[394443134,1763578007419,-534.99238207,0.00049315,120]
[394443135,1763578007446,-554.88635243,0.00049315,120]
[394443136,1763578007474,-522.93647761,0.00049315,120]
[394443137,1763578007499,-500.0,0.00049315,120]
[394443138,1763578007523,-500.0,0.00049315,120]
[394443139,1763578007548,-500.0,0.00049315,120]
[394443140,1763578007573,-676.67,0.00049315,120]
[394443141,1763578007599,-500.0,0.00049315,120]
[394443142,1763578007627,-500.0,0.00049315,120]
[394443143,1763578007652,-536.88282047,0.00049315,120]
[394443144,1763578007678,-758.84,0.00049315,120]
[394443145,1763578007705,-500.0,0.00049315,120]
[394443146,1763578007731,-500.0,0.00049315,120]
[394443147,1763578007759,-500.0,0.00049315,120]
[394443148,1763578007788,-552.5462488,0.00049315,120]
[394443149,1763578007815,-500.0,0.00049315,120]
[394443150,1763578007839,-500.0,0.00049315,120]
[394443151,1763578007864,-525.22576882,0.00049315,120]
[394443152,1763578007887,-500.0,0.00049315,120]
[394443153,1763578007911,-547.91391399,0.00049315,120]
[394443154,1763578007935,-500.0,0.00049315,120]
[394443155,1763578007959,-500.0,0.00049315,120]
[394443156,1763578007984,-506.38635312,0.00049315,120]
[394443157,1763578008011,-500.0,0.00049315,120]
[394443158,1763578008038,-500.0,0.00049315,120]
[394443159,1763578008063,-514.57318193,0.00049315,120]
[394443160,1763578008088,-500.0,0.00049315,120]
[394443161,1763578008116,-313.13980462,0.00049315,120]
[394443162,1763578008140,-499.3,0.00049345,60]
[394443163,1763578008165,-689.57049505,0.00049395,60]
[394443164,1763578008189,-500.0,0.00049533,60]
[394443165,1763578008214,-527.5957507,0.00049545,60]
[394443166,1763578008239,-424.04955826,0.00049589,120]
[394443167,1763578008263,-500.0,0.00049589,120]
[394443168,1763578008288,-500.0,0.00049589,120]
[394443169,1763578008315,-518.49641701,0.00049589,120]
[394443170,1763578008341,-500.0,0.00049589,120]
[394443171,1763578008366,-500.0,0.00049589,120]
[394443172,1763578008390,-500.0,0.00049589,10]
[394443173,1763578008415,-500.0,0.00049589,120]
[394443174,1763578008439,-199.0,0.00049589,30]
[394443175,1763578008464,-1000.0,0.00049589,30]
[394443176,1763578008488,-553.84261829,0.00049589,120]
[394443177,1763578008515,-500.0,0.00049589,120]
[394443178,1763578008539,-500.0,0.00049589,120]
[394443179,1763578008563,-500.0,0.00049589,120]
[394443180,1763578008588,-500.0,0.00049589,120]
[394443181,1763578008614,-2297.29,0.00049589,120]
[394443182,1763578008640,-833.76,0.00049589,120]
[394443183,1763578008665,-500.0,0.00049589,120]
[394443184,1763578008689,-678.57,0.00049589,120]
[394443185,1763578008714,-500.0,0.00049589,120]
[394443186,1763578008738,-500.0,0.00049589,120]
[394443187,1763578008767,-1637.31,0.00049589,120]
[394443188,1763578008790,-500.0,0.00049589,120]
[394443189,1763578008816,-170.25696229,0.00049589,120]
[394443190,1763578008840,-500.0,0.00049589,120]
[394443191,1763578008864,-500.0,0.00049589,120]
[394443192,1763578008889,-500.0,0.00049589,120]
[394443193,1763578008914,-500.0,0.00049589,120]
[394443194,1763578008939,-155.42563527,0.00049589,120]
[394443195,1763578008963,-500.0,0.00049589,120]
[394443196,1763578008987,-544.88,0.00049589,15]
[394443197,1763578009012,-500.0,0.00049589,120]
[394443198,1763578009037,-510.1397294,0.00049589,20]
[394443199,1763578009060,-500.0,0.00049589,120]
[394443200,1763578009084,-500.0,0.00049589,20]
[394443201,1763578009194,-500.0,0.00049589,120]
[394443202,1763578009221,-500.0,0.00049589,120]
[394443203,1763578009246,-500.0,0.00049589,120]
[394443204,1763578009270,-470.78586385,0.00049589,120]
[394443205,1763578009298,-500.0,0.00049589,120]
[394443206,1763578009325,-434.07767368,0.00049589,120]
[394443207,1763578009349,-500.0,0.00049589,120]
[394443208,1763578009374,-646.8,0.00049589,120]
[394443209,1763578009400,-500.0,0.00049589,120]
[394443210,1763578009427,-294.19555314,0.00049589,120]
[394443211,1763578009452,-500.0,0.00049589,120]
[394443212,1763578009478,-500.0,0.00049589,120]
[394443213,1763578009505,-500.0,0.00049589,120]
[394443214,1763578009530,-500.0,0.00049589,120]
[394443215,1763578009555,-500.0,0.00049589,120]
[394443216,1763578009580,-500.0,0.00049589,120]
[394443217,1763578009606,-500.0,0.00049589,120]
[394443218,1763578009633,-1018.54,0.00049589,120]
[394443219,1763578009658,-500.0,0.00049589,120]
[394443220,1763578009684,-500.0,0.00049589,120]
[394443221,1763578009709,-520.12607312,0.00049589,120]
[394443222,1763578009733,-500.0,0.00049589,120]
[394443223,1763578009758,-500.0,0.00049589,120]
[394443224,1763578009787,-500.0,0.00049589,120]
[394443225,1763578009813,-500.0,0.00049589,120]
[394443226,1763578009838,-500.0,0.00049589,120]
[394443227,1763578009864,-500.0,0.00049589,120]
[394443228,1763578009889,-500.0,0.00049589,120]
[394443229,1763578009913,-359.12668551,0.00049589,120]
[394443230,1763578009937,-980.88,0.00049589,120]
[394443231,1763578009962,-500.0,0.00049589,120]
[394443232,1763578009987,-461.25590099,0.00049589,120]
[394443233,1763578010012,-1000.0,0.00049589,120]
[394443234,1763578010039,-869.04,0.00049589,120]
[394443235,1763578010064,-621.33,0.00049589,35]
[394443236,1763578010090,-757.78,0.00049589,120]
[394443237,1763578010117,-500.0,0.00049589,120]
[394443238,1763578010142,-500.0,0.00049589,120]
[394443239,1763578010167,-500.0,0.00049589,120]
[394443240,1763578010191,-502.18,0.00049589,120]
[394443241,1763578010216,-798.23,0.00049589,120]
[394443242,1763578010241,-500.0,0.00049589,120]
[394443243,1763578010268,-939.57,0.00049589,120]
[394443244,1763578010292,-500.0,0.00049589,120]
[394443245,1763578010318,-500.0,0.00049589,120]
[394443246,1763578010343,-500.0,0.00049589,120]
[394443247,1763578010367,-903.43,0.00049589,120]
[394443248,1763578010394,-1016.37,0.00049589,120]
[394443249,1763578010418,-405.83988194,0.00049589,120]
[394443250,1763578010443,-230.50976885,0.00049589,30]
[394443251,1763578010468,-160.98015797,0.00049589,120]
[394443252,1763578010492,-504.79628969,0.00049589,120]
[394443253,1763578010516,-500.0,0.00049589,120]
[394443254,1763578010540,-500.0,0.00049589,120]
[394443255,1763578010565,-500.0,0.00049589,120]
[394443256,1763578010590,-500.0,0.00049589,120]
[394443257,1763578010617,-500.0,0.00049589,120]
[394443258,1763578010642,-500.0,0.00049589,120]
[394443259,1763578010666,-500.0,0.00049589,120]
[394443260,1763578010692,-500.0,0.00049589,120]
[394443261,1763578010716,-500.0,0.00049589,120]
[394443262,1763578010741,-500.0,0.00049589,30]
[394443263,1763578010769,-500.0,0.00049589,120]
[394443264,1763578010794,-500.0,0.00049589,120]
[394443265,1763578010819,-500.0,0.00049589,120]
[394443266,1763578010843,-500.0,0.00049589,120]
[394443267,1763578010867,-500.0,0.00049589,120]
[394443268,1763578010974,-500.0,0.00049589,120]
[394443269,1763578010999,-1491.91,0.00049589,120]
[394443270,1763578011023,-173.58621695,0.00049589,120]
[394443271,1763578011047,-169.6730544,0.00049589,120]
[394443272,1763578011071,-500.0,0.00049589,120]
[394443273,1763578011096,-500.0,0.00049589,120]
[394443274,1763578011120,-500.0,0.00049589,120]
[394443275,1763578011145,-500.0,0.00049589,120]
[394443276,1763578011170,-500.0,0.00049589,120]
[394443277,1763578011197,-500.0,0.00049589,120]
[394443278,1763578011224,-500.0,0.00049589,120]
[394443279,1763578011250,-500.0,0.00049589,120]
[394443280,1763578011275,-500.0,0.00049589,120]
[394443281,1763578011302,-500.0,0.00049589,120]
[394443282,1763578011328,-178.38192381,0.00049589,120]
[394443283,1763578011354,-500.0,0.00049589,120]
[394443284,1763578011379,-500.0,0.00049589,120]
[394443285,1763578011406,-500.0,0.00049589,120]
[394443286,1763578011434,-933.73,0.00049589,120]
[394443287,1763578011460,-500.0,0.00049589,120]
[394443288,1763578011487,-500.0,0.00049589,120]
[394443289,1763578011511,-500.0,0.00049589,120]
[394443290,1763578011538,-589.23,0.00049589,120]
[394443291,1763578011563,-500.0,0.00049589,120]
[394443292,1763578011590,-500.0,0.00049589,120]
[394443293,1763578011616,-500.0,0.00049589,120]
[394443294,1763578011642,-500.0,0.00049589,120]
[394443295,1763578011668,-737.15,0.00049589,120]
[394443296,1763578011693,-500.0,0.00049589,120]
[394443297,1763578011718,-500.0,0.00049589,120]
[394443298,1763578011744,-391.90279615,0.00049589,120]
[394443299,1763578011773,-500.0,0.00049589,120]
[394443300,1763578011798,-500.0,0.00049589,120]
[394443301,1763578011825,-500.0,0.00049589,120]
[394443302,1763578011850,-211.36833759,0.00049589,120]
[394443303,1763578011875,-195.00509387,0.00049589,120]
[394443304,1763578011900,-500.0,0.00049589,120]
[394443305,1763578011926,-676.67,0.00049589,120]
[394443306,1763578011950,-500.0,0.00049589,120]
[394443307,1763578011975,-616.1549183,0.00049589,120]
[394443308,1763578012001,-758.84,0.00049589,120]
[394443309,1763578012026,-500.0,0.00049589,120]
[394443310,1763578012051,-500.0,0.00049589,120]
[394443311,1763578012079,-500.0,0.00049589,120]
[394443312,1763578012106,-279.83673525,0.00049589,120]
[394443313,1763578012130,-230.94877616,0.00049589,120]
[394443314,1763578012154,-503.3539686,0.00049589,120]
[394443315,1763578012180,-500.0,0.00049589,120]
[394443316,1763578012206,-500.0,0.00049589,120]
[394443317,1763578012231,-500.0,0.00049589,120]
[394443318,1763578012257,-500.0,0.00049589,120]
[394443319,1763578012283,-500.0,0.00049589,120]
[394443320,1763578012309,-15000.0,0.000497,120]
[394443321,1763578012334,-1032.0,0.000497,48]
[394443322,1763578012359,-336.04029467,0.00049863,120]
[394443323,1763578012382,-500.0,0.00049863,120]
[394443324,1763578012407,-500.0,0.00049863,120]
[394443325,1763578012431,-500.0,0.00049863,120]
[394443326,1763578012456,-500.0,0.00049863,120]
[394443327,1763578012481,-1000.0,0.00049863,30]
[394443328,1763578012505,-500.0,0.00049863,120]
[394443329,1763578012530,-500.0,0.00049863,120]
[394443330,1763578012556,-500.0,0.00049863,120]
[394443331,1763578012580,-500.0,0.00049863,120]
[394443332,1763578012680,-2297.29,0.00049863,120]
[394443333,1763578012711,-833.76,0.00049863,120]
[394443334,1763578012736,-500.0,0.00049863,120]
[394443335,1763578012760,-678.57,0.00049863,120]
[394443336,1763578012789,-500.0,0.00049863,120]
[394443337,1763578012815,-500.0,0.00049863,120]
[394443338,1763578012841,-1637.31,0.00049863,120]
[394443339,1763578012867,-500.0,0.00049863,120]
[394443340,1763578012893,-356.95058279,0.00049863,120]
[394443341,1763578012917,-500.0,0.00049863,120]
[394443342,1763578012943,-500.0,0.00049863,120]
[394443343,1763578012966,-500.0,0.00049863,120]
[394443344,1763578012990,-500.0,0.00049863,120]
[394443345,1763578013013,-544.88,0.00049863,15]
[394443346,1763578013039,-500.0,0.00049863,120]
[394443347,1763578013064,-611.73229788,0.00049863,120]
[394443348,1763578013089,-613.40588323,0.00049863,20]
[394443349,1763578013114,-500.0,0.00049863,120]
[394443350,1763578013141,-565.36239493,0.00049863,120]
[394443351,1763578013170,-500.0,0.00049863,120]
[394443352,1763578013196,-500.0,0.00049863,120]
[394443353,1763578013221,-500.0,0.00049863,120]
[394443354,1763578013245,-646.8,0.00049863,120]
[394443355,1763578013270,-500.0,0.00049863,120]
[394443356,1763578013295,-500.0,0.00049863,120]
[394443357,1763578013322,-500.0,0.00049863,120]
[394443358,1763578013349,-500.0,0.00049863,120]
[394443359,1763578013373,-500.0,0.00049863,120]
[394443360,1763578013398,-500.0,0.00049863,120]
[394443361,1763578013424,-500.0,0.00049863,120]
[394443362,1763578013451,-500.0,0.00049863,120]
[394443363,1763578013479,-1018.54,0.00049863,120]
[394443364,1763578013507,-500.0,0.00049863,120]
[394443365,1763578013543,-500.0,0.00049863,120]
[394443366,1763578013573,-510.2958906,0.00049863,120]
[394443367,1763578013602,-500.0,0.00049863,120]
[394443368,1763578013631,-500.0,0.00049863,120]
[394443369,1763578013660,-500.0,0.00049863,120]
[394443370,1763578013688,-500.0,0.00049863,120]
[394443371,1763578013716,-500.0,0.00049863,120]
[394443372,1763578013743,-500.0,0.00049863,120]
[394443373,1763578013775,-980.88,0.00049863,120]
[394443374,1763578013804,-500.0,0.00049863,120]
[394443375,1763578013831,-1000.0,0.00049863,120]
[394443376,1763578013859,-869.04,0.00049863,120]
[394443377,1763578013887,-621.33,0.00049863,35]
[394443378,1763578013915,-757.78,0.00049863,120]
[394443379,1763578013943,-500.0,0.00049863,120]
[394443380,1763578013971,-500.0,0.00049863,120]
[394443381,1763578013998,-502.13602178,0.00049863,120]
[394443382,1763578014025,-502.18,0.00049863,120]
[394443383,1763578014050,-798.23,0.00049863,120]
[394443384,1763578014076,-500.0,0.00049863,120]
[394443385,1763578014103,-939.57,0.00049863,120]
[394443386,1763578014130,-500.0,0.00049863,120]
[394443387,1763578014158,-500.0,0.00049863,120]
[394443388,1763578014187,-500.0,0.00049863,120]
[394443389,1763578014215,-903.43,0.00049863,120]
[394443390,1763578014243,-1016.37,0.00049863,120]
[394443391,1763578014272,-500.0,0.00049863,120]
[394443392,1763578014302,-500.0,0.00049863,120]
[394443393,1763578014331,-500.0,0.00049863,120]
[394443394,1763578014359,-500.0,0.00049863,120]
[394443395,1763578014476,-500.0,0.00049863,120]
[394443396,1763578014506,-500.0,0.00049863,120]
[394443397,1763578014538,-537.15943536,0.00049863,120]
[394443398,1763578014566,-500.0,0.00049863,120]
[394443399,1763578014593,-503.90467087,0.00049863,120]
[394443400,1763578014621,-514.95682579,0.00049863,30]
[394443401,1763578014649,-500.0,0.00049863,120]
[394443402,1763578014676,-500.0,0.00049863,120]
[394443403,1763578014703,-500.0,0.00049863,120]
[394443404,1763578014730,-500.0,0.00049863,120]
[394443405,1763578014757,-500.0,0.00049863,120]
[394443406,1763578014791,-330.24612944,0.00049863,120]
[394443407,1763578014819,-1491.91,0.00049863,120]
[394443408,1763578014846,-500.0,0.00049863,120]
[394443409,1763578014874,-500.0,0.00049863,120]
[394443410,1763578014900,-500.0,0.00049863,120]
[394443411,1763578014926,-500.0,0.00049863,120]
[394443412,1763578014953,-500.0,0.00049863,120]
[394443413,1763578014980,-500.0,0.00049863,120]
[394443414,1763578015007,-500.0,0.00049863,120]
[394443415,1763578015033,-473.41064161,0.00049863,120]
[394443416,1763578015060,-500.0,0.00049863,120]
[394443417,1763578015085,-500.0,0.00049863,120]
[394443418,1763578015110,-590.14487311,0.00049863,120]
[394443419,1763578015137,-500.0,0.00049863,120]
[394443420,1763578015163,-500.0,0.00049863,120]
[394443421,1763578015191,-933.73,0.00049863,120]
[394443422,1763578015216,-500.0,0.00049863,120]
[394443423,1763578015242,-500.0,0.00049863,120]
[394443424,1763578015269,-500.0,0.00049863,120]
[394443425,1763578015295,-589.23,0.00049863,120]
[394443426,1763578015320,-602.08557819,0.00049863,120]
[394443427,1763578015346,-500.0,0.00049863,120]
[394443428,1763578015374,-340.08625527,0.00049863,120]
[394443429,1763578015402,-500.0,0.00049863,120]
[394443430,1763578015428,-737.15,0.00049863,120]
[394443431,1763578015455,-500.0,0.00049863,120]
[394443432,1763578015482,-500.0,0.00049863,120]
[394443433,1763578015511,-500.0,0.00049863,120]
[394443434,1763578015538,-500.0,0.00049863,120]
[394443435,1763578015563,-500.0,0.00049863,120]
[394443436,1763578015589,-500.0,0.00049863,120]
[394443437,1763578015616,-676.67,0.00049863,120]
[394443438,1763578015642,-500.0,0.00049863,120]
[394443439,1763578015668,-758.84,0.00049863,120]
[394443440,1763578015694,-500.0,0.00049863,120]
[394443441,1763578015720,-500.0,0.00049863,120]
[394443442,1763578015746,-500.0,0.00049863,120]
[394443443,1763578015775,-500.0,0.00049863,120]
[394443444,1763578015801,-500.0,0.00049863,120]
[394443445,1763578015828,-500.0,0.00049863,120]
[394443446,1763578015855,-500.0,0.00049863,120]
[394443447,1763578015880,-500.0,0.00049863,120]
[394443448,1763578015904,-16337.94217932,0.0004987,30]
[394443449,1763578015929,-100000.0,0.0005,120]
[394443450,1763578015952,-338.28365676,0.0005,120]
[394443451,1763578015976,-672.8784478,0.0005,120]
[394443452,1763578016008,-222.48336084,0.0005,20]
[394443453,1763578016033,-158.32270333,0.0005,120]
[394443454,1763578016058,-985.98219684,0.0005,120]
[394443455,1763578016161,-200.0,0.0005,120]
[394443456,1763578016189,-1322.97967792,0.0005,120]
[394443457,1763578016217,-9201.79204248,0.0005,120]
[394443458,1763578016245,-2000.0,0.0005,21]
[394443459,1763578016269,-159.0,0.00050122,120]
[394443460,1763578016295,-500.0,0.00050136,120]
[394443461,1763578016319,-500.0,0.00050136,120]
[394443462,1763578016344,-500.0,0.00050136,120]
[394443463,1763578016370,-500.0,0.00050136,120]
[394443464,1763578016395,-1000.0,0.00050136,30]
[394443465,1763578016418,-465.36914927,0.00050136,120]
[394443466,1763578016442,-500.0,0.00050136,120]
[394443467,1763578016467,-478.49364238,0.00050136,120]
[394443468,1763578016491,-500.0,0.00050136,120]
[394443469,1763578016516,-2297.29,0.00050136,120]
[394443470,1763578016542,-833.76,0.00050136,120]
[394443471,1763578016567,-500.0,0.00050136,120]
[394443472,1763578016592,-678.57,0.00050136,120]
[394443473,1763578016617,-500.0,0.00050136,120]
[394443474,1763578016641,-500.0,0.00050136,120]
[394443475,1763578016666,-1637.31,0.00050136,120]
[394443476,1763578016691,-500.0,0.00050136,120]
[394443477,1763578016716,-500.0,0.00050136,120]
[394443478,1763578016742,-500.0,0.00050136,120]
[394443479,1763578016771,-500.0,0.00050136,120]
[394443480,1763578016796,-637.8160409,0.00050136,120]
[394443481,1763578016822,-544.88,0.00050136,15]
[394443482,1763578016848,-500.0,0.00050136,120]
[394443483,1763578016873,-522.60526684,0.00050136,120]
[394443484,1763578016898,-516.99309819,0.00050136,120]
[394443485,1763578016923,-500.0,0.00050136,120]
[394443486,1763578016949,-500.0,0.00050136,120]
[394443487,1763578016974,-624.46006058,0.00050136,120]
[394443526,1763578067987,1982.01,0.00015,30]
[394443527,1763578068014,18689.99747377,0.00015,30]
[394443574,1763578144075,998.0,0.00040386,20]
[394443575,1763578157118,-204.67815682,0.00011633,2]
[394443576,1763578157139,-295.45979178,0.00011951,2]
[394443577,1763578193023,169.375,0.0003168,120]
[394443625,1763578232905,1500.0,0.00011502,2]
[394443661,1763578238196,-1500.0,0.00011618,2]
[394443663,1763578238208,-300.0,0.00011735,2]
[394443665,1763578238218,-1200.0,0.00011735,2]
[394443668,1763578238227,-163.15737457,0.00011735,2]
[394443669,1763578238237,-500.0,0.00011735,2]
[394443672,1763578238246,-357.54474734,0.00011735,2]
[394443674,1763578238255,-500.0,0.00011735,2]
[394443675,1763578238264,-578.25771046,0.00011735,2]
[394443677,1763578238274,-500.0,0.00011735,2]
[394443679,1763578238283,-500.0,0.00011735,2]
[394443682,1763578238292,-500.0,0.00011735,2]
[394443684,1763578238300,-500.0,0.00011735,2]
[394443687,1763578238309,-500.0,0.00011735,2]
[394443689,1763578238319,-400.00000001,0.00011735,2]
[394443691,1763578238327,-500.0,0.00011735,2]
[394443693,1763578238337,-500.0,0.00011735,2]
[394443695,1763578238347,-500.0,0.00011735,2]
[394443697,1763578238355,-500.0,0.00011735,2]
[394443699,1763578238365,-500.0,0.00011735,2]
[394443701,1763578238374,-500.0,0.00011735,2]
[394443703,1763578238383,-500.0,0.00011735,2]
[394443705,1763578238392,-500.0,0.00011735,2]
[394443707,1763578238401,-500.0,0.00011735,2]
[394443710,1763578238411,-500.0,0.00011735,2]
[394443711,1763578238421,-500.0,0.00011735,2]
[394443713,1763578238430,-500.0,0.00011735,2]
[394443716,1763578238440,-500.0,0.00011735,2]
[394443717,1763578238452,-500.0,0.00011735,2]
[394443720,1763578238461,-500.0,0.00011735,2]
[394443722,1763578238470,-500.0,0.00011735,2]
[394443724,1763578238480,-500.0,0.00011735,2]
[394443726,1763578238489,-136610.3643476,0.00011736,2]
[394443727,1763578238499,-890000.0,0.00011855,2]
[394443730,1763578238509,-567.0,0.00011952,2]
[394443732,1763578238518,-50000.0,0.00011953,2]
[394443744,1763578238631,-500.0,0.00011958,2]
[394443746,1763578238640,-500.0,0.00011973,2]
[394443748,1763578238650,-500.0,0.00011973,2]
[394443750,1763578238659,-558.41505035,0.00011973,2]
[394443752,1763578238669,-500.0,0.00011973,2]
[394443754,1763578238678,-414.92008594,0.00011973,2]
[394443756,1763578238687,-500.0,0.00011973,2]
[394443758,1763578238697,-500.0,0.00011973,2]
[394443760,1763578238708,-500.0,0.00011973,2]
[394443763,1763578238718,-500.0,0.00011973,2]
[394443765,1763578238727,-500.0,0.00011973,2]
[394443767,1763578238737,-500.0,0.00011973,2]
[394443768,1763578238747,-151.0,0.00012,2]
[394443771,1763578238757,-151.0,0.00012,2]
[394443773,1763578238766,-564.04608848,0.00012015,2]
[394443775,1763578238776,-2256.18435392,0.00012015,2]
[394443777,1763578238785,-5076.41479632,0.00012015,2]
[394443779,1763578238794,-763.30459771,0.00012015,2]
[394443780,1763578238803,-3053.21839085,0.00012015,2]
[394443783,1763578238814,-151.0,0.000121,2]
[394443785,1763578238823,-151.0,0.000122,2]
[394443787,1763578238833,-151.0,0.000122,2]
[394443789,1763578238842,-500.0,0.00012232,2]
[394443791,1763578238854,-1890.10468697,0.00012271,2]
[394443793,1763578238863,-151.0,0.000123,2]
[394443795,1763578238873,-151.0,0.000123,2]
[394443797,1763578238882,-151.0,0.000124,2]
[394443799,1763578238892,-151.0,0.000124,2]
[394443801,1763578238902,-151.0,0.000125,2]
[394443803,1763578238911,-151.0,0.000125,2]
[394443805,1763578238920,-500.0,0.00012506,2]
[394443807,1763578238931,-1000.0,0.00012521,2]
[394443809,1763578238940,-500.0,0.00012521,2]
[394443811,1763578238948,-1000.0,0.00012521,2]
[394443813,1763578238959,-455.285,0.00012521,2]
[394443815,1763578238969,-506.86425752,0.00012521,2]
[394443817,1763578238979,-1000.0,0.00012521,2]
[394443819,1763578238988,-504.76291917,0.00012521,2]
[394443821,1763578238997,-520.37042253,0.00012521,2]
[394443823,1763578239007,-1000.0,0.00012521,2]
[394443825,1763578239017,-151.0,0.000126,2]
[394443827,1763578239027,-151.0,0.000126,2]
[394443829,1763578239036,-151.0,0.000127,2]
[394443831,1763578239045,-151.0,0.000127,2]
[394443833,1763578239055,-500.0,0.0001278,2]
[394443835,1763578239064,-151.0,0.000128,2]
[394443837,1763578239073,-420.0,0.00012886,2]
[394443839,1763578239083,-151.0,0.000129,2]
[394443841,1763578239092,-7504.12448357,0.000129,2]
[394443843,1763578239101,-446.0,0.00012909,2]
[394443845,1763578239111,-151.0,0.00013,2]
[394443847,1763578239121,-1158.15770449,0.00013068,2]
[394443849,1763578239130,-585.03780831,0.00013068,2]
[394443851,1763578239140,-1500.0,0.00013068,2]
[394443852,1763578239149,-1008.93431054,0.00013068,2]
[394443855,1763578239159,-263.70606165,0.00013385,2]
[394443857,1763578239168,-500.0,0.00013385,2]
[394443858,1763578239178,-500.0,0.0001348,2]
[394443860,1763578239188,-500.0,0.0001348,2]
[394443863,1763578239198,-500.0,0.0001348,2]
[394443864,1763578239210,-500.0,0.0001348,2]
[394443867,1763578239220,-500.0,0.0001348,2]
[394443869,1763578239230,-500.0,0.0001348,2]
[394443871,1763578239240,-500.0,0.0001348,2]
[394443873,1763578239250,-500.0,0.0001348,2]
[394443875,1763578239260,-500.0,0.0001348,2]
[394443877,1763578239269,-500.0,0.00013484,2]
[394443879,1763578239279,-500.0,0.00013484,2]
[394443880,1763578239289,-2357.19703993,0.00013496,2]
[394443882,1763578239299,-2357.19703993,0.00013607,2]
[394443884,1763578239308,-2000.0,0.00013616,2]
[394443887,1763578239319,-241.52022505,0.00013633,2]
[394443889,1763578239328,-326.9689273,0.00013687,2]
[394443890,1763578239338,-500.0,0.00013698,2]
[394443893,1763578239348,-256.37811665,0.00013698,2]